Cogmind - Beta 17.1 @@@ ROGUE MODE // 2026.09.20 @ 14:40:02 Player: UnderDoug Result: Destroyed by X-62 Marksman with Gauss Rifle Performance ------------- Evolutions (2) 1000 Regions Visited (5) 1000 Robots Destroyed (52) 260 Value Destroyed (1170) 1170 Prototype IDs (4) 80 Alien Tech Used (0) 0 Bonus (84) 84 TOTAL SCORE: 3594 Bonus ------- Follower Combat Kills 111 Friendly Fire -27 Cogmind --------- Core Integrity 0/550 Matter 232/300 Energy 98/100 System Corruption 7% Temperature Cool (18) Movement Core (50) Location -8/Materials Parts ------- > --- POWER (2) -------- (None) > --- PROPULSION (4) --- Combat Airjet > --- UTILITY (3) ------ Improved Heat Sink > --- WEAPON (2) ------- (None) > --- INVENTORY (5) ---- Light Nuclear Core Enhanced Nuclear Core Large Matter Pod (150) Advanced Beam Cannon Mining Laser Peak State ------------ > --- POWER ------------ Enhanced Nuclear Core Enhanced Nuclear Core > --- PROPULSION ------- Hover Unit Hover Unit Combat Airjet Combat Airjet > --- UTILITY ---------- Improved Heat Sink Small Storage Unit Sensor Drone Bay > --- WEAPON ----------- Advanced Beam Cannon Mining Claw > --- INVENTORY -------- Light Nuclear Core Enhanced Nuclear Core Aluminum Leg Aluminum Leg Large Matter Pod Mini Grenade Launcher Mining Laser [Rating: 39] Favorites ----------- Power Ion Engine Engine Ion Engine Power Core Light Nuclear Core Propulsion Aluminum Leg Leg Aluminum Leg Hover Unit Combat Airjet Utility Small Storage Unit Device Sensor Drone Bay Storage Small Storage Unit Protection Light Armor Plating Weapon Mining Claw Energy Gun Small Laser Energy Cannon Advanced Beam Cannon Ballistic Gun Assault Rifle Launcher Mini Grenade Launcher Slashing Weapon Mining Claw Build | -11 -10 -10 -9 -9 -8 ------- Run | Yrd Mat Min Mat Sto Mat Slots Evolved 4 | . . . 2 . 2 Power 1 | . . . . . 1 Propulsion 2 | . . . 1 . 1 Utility 1 | . . . 1 . . Weapon . | . . . . . . Parts Attached 34 | 7 5 6 3 4 9 Power 6 | 1 . 1 . 1 3 Engine 2 | 1 . 1 . . . Core 4 | . . . . 1 3 Reactor . | . . . . . . Propulsion 12 | 2 2 2 2 1 3 Treads . | . . . . . . Leg 7 | 2 2 . 1 . 2 Wheel . | . . . . . . Hover 5 | . . 2 1 1 1 Flight . | . . . . . . Utility 8 | 2 2 1 1 . 2 Device 6 | 1 2 1 . . 2 Storage 1 | 1 . . . . . Processor . | . . . . . . Hackware . | . . . . . . Protection 1 | . . . 1 . . Artifact . | . . . . . . Weapon 8 | 2 1 2 . 2 1 Energy Gun 2 | 1 . . . 1 . Energy Cannon 2 | . . . . 1 1 Ballistic Gun 2 | 1 . 1 . . . Ballistic Cannon . | . . . . . . Launcher 1 | . . 1 . . . Special Weapon . | . . . . . . Impact Weapon . | . . . . . . Slashing Weapon 1 | . 1 . . . . Piercing Weapon . | . . . . . . Special Melee Weapon . | . . . . . . Unidentified Prototypes 4 | . . 1 . 2 1 Parts Lost 18 | . 1 2 1 1 13 Power 2 | . . . . . 2 Propulsion 6 | . . . . . 6 Utility 6 | . 1 1 . 1 3 Weapon 4 | . . 1 1 . 2 Highest Loss Streak 8 | . 1 2 1 1 8 To Critical Strikes . | . . . . . . Average Backups 7 | 6 7 7 7 8 7 Power 1 | . 1 1 1 1 1 Propulsion 2 | 2 2 2 2 4 1 Utility 1 | 1 1 1 1 1 1 Weapon 2 | 1 2 3 2 2 2 Tool/Special . | . . . . . . Unused Backups 12 | 2 2 1 1 1 5 Power 4 | . . . 1 . 3 Propulsion 5 | 2 1 1 . 1 . Utility 2 | . 1 . . . 1 Weapon 1 | . . . . . 1 Tool/Special . | . . . . . . Average Slot Usage (%) 96 | . 99 99 99 92 91 Engine 8 | . 14 14 11 1 . Core 4 | . . . . 9 17 Leg 13 | . 28 17 13 . 4 Hover 16 | . . 10 19 33 26 Device 13 | . 13 13 15 11 16 Storage 12 | . 14 14 11 11 8 Protection 2 | . . . 6 4 . Energy Gun 1 | . 5 . . . . Energy Cannon 3 | . . . . 10 5 Ballistic Gun 7 | . 14 13 10 . . Slashing Weapon 10 | . 8 14 11 11 9 Peak Build Rating 39 | 9 9 26 29 28 39 Average Rating 18 | 5 7 14 24 27 34 On Entrance 15 | . 9 8 25 26 27 Avg Prop Armor Cover (%) 5 | . . 13 7 2 3 Naked Turns . | . . . . . . Heaviest Build 42 | 14 15 28 31 33 42 Greatest Support 38 | 20 20 24 30 30 38 Greatest Overweight (x) 5 | 1 . 1 1 1 5 Average Overweight (x) . | . . . . . . Largest Inventory Capacity 8 | 8 8 8 8 8 8 Average Capacity 7 | 7 8 8 8 8 7 Most Carried 8 | 8 8 8 8 8 8 Average Carried 7 | 6 7 7 7 8 7 Final Capacity 8 | 8 8 8 8 8 5 Final Carried 8 | 6 8 8 8 8 5 Class Distribution -------------------- 55% | Mutant 44% | Scavenger-Mutant Dominant Class ---------------- Mutant | -10/Materials Mutant | -10/Mines Scavenger-Mutant | -9/Materials Scavenger-Mutant | -9/Storage Scavenger-Mutant | -8/Materials Resources | -11 -10 -10 -9 -9 -8 ----------- Run | Yrd Mat Min Mat Sto Mat Matter Collected 1296 | 417 233 6 306 67 267 Remotely . | . . . . . . Salvage Created 1386 | 344 180 . 283 170 409 Parts 100 | 33 16 . 18 14 19 Haulers Intercepted . | . . . . . . Recyclers Shooed 1 | . . . . . 1 Parts Field Recycled . | . . . . . . Retrieved Matter . | . . . . . . Parts Self-Destructed . | . . . . . . Prevented . | . . . . . . Parts Restored . | . . . . . . Kills | -11 -10 -10 -9 -9 -8 ------- Run | Yrd Mat Min Mat Sto Mat Combat Hostiles Destroyed 25 | . 5 . 5 2 13 Melee 6 | . 2 . 2 . 2 Guns 6 | . 3 . 3 . . Cannons 5 | . . . . 2 3 AOE 8 | . . . . . 8 Classes Destroyed 8 | 3 3 . 1 1 . Worker 8 | 4 . . 1 2 1 Tunneler 10 | 9 1 . . . . Recycler 2 | 1 . . . . 1 Operator 2 | . . . . 2 . Watcher 5 | . 2 . 1 . 2 Swarmer 6 | . 3 . . . 3 Grunt 12 | . 2 . 3 . 7 Sentry 7 | . . . 2 2 3 Best Kill Streak 7 | 6 3 . 2 3 7 Combat Bots Only 5 | . 3 . 2 1 5 Max Kills in Single Turn 2 | 1 2 . 1 1 2 Gunslinging 1 | . 1 . . . . Exploded 1 | . . . . . 1 Melee 1 | . 1 . 1 . 1 Uniques/NPCs Destroyed . | . . . . . . Combat | -11 -10 -10 -9 -9 -8 -------- Run | Yrd Mat Min Mat Sto Mat Hostile Shots Fired 209 | . 23 5 44 20 117 Missed 43 | . 6 . 7 5 25 Hits 166 | . 17 5 37 15 92 Melee 2 | . . . . . 2 Projectile 164 | . 17 5 37 15 90 AOE 8 | . . 8 . . . Critical Strikes 8 | . . . 1 1 6 Part Disruptions 1 | . . . . 1 . Damage Taken 2938 | . 246 241 501 276 1674 Core 852 | . 42 102 98 45 565 Absorbed by Shields . | . . . . . . Regen/Repaired (Parts) 213 | . . . 213 . . Core Remaining (%) 68 | 100 . 42 . 64 . Volleys Fired 153 | 29 12 1 43 21 47 Largest 2 | 2 2 1 1 1 1 Hottest 68 | 60 60 30 40 68 68 Shots Fired 192 | 57 22 1 43 21 48 Gun 122 | 57 22 . 43 . . Cannon 44 | . . . . 21 23 Launcher 26 | . . 1 . . 25 Special . | . . . . . . Kinetic 80 | 29 12 . 39 . . Thermal 86 | 28 10 . 4 21 23 Explosive 26 | . . 1 . . 25 Electromagnetic . | . . . . . . Robot Hit Streak 7 | 7 4 . 4 4 6 Robot Miss Streak 4 | 1 2 . 4 2 4 Penetration Max . | . . . . . . Secondary Targets 1 | . 1 . . . . Max Gunslinging Chain 1 | . 1 . . . . Shots Hit Robots 133 | 35 21 . 26 14 37 Core Hits 76 | 15 9 . 12 8 32 Critical Kills . | . . . . . . Critical Parts Destroyed . | . . . . . . Critical Strikes . | . . . . . . Melee Attacks 38 | . 10 2 8 5 13 Impact . | . . . . . . Slashing 38 | . 10 2 8 5 13 Piercing . | . . . . . . Sneak Attacks . | . . . . . . Combat Hostiles . | . . . . . . Follow-up Attacks . | . . . . . . Damage Inflicted 3310 | 409 359 . 375 318 1849 Guns 825 | 409 164 . 252 . . Cannons 561 | . . . . 296 265 Explosions 1378 | . . . . . 1378 Melee 546 | . 195 . 123 22 206 Ramming . | . . . . . . Kinetic 557 | 205 110 . 242 . . Thermal 942 | 204 54 . 10 296 378 Explosive 1265 | . . . . . 1265 Electromagnetic . | . . . . . . Impact . | . . . . . . Slashing 546 | . 195 . 123 22 206 Piercing . | . . . . . . Highest Corruption 7 | . . . . 1 7 Average Corruption 2 | . . . . 1 5 Corruption Purged . | . . . . . . Corruption Blocked . | . . . . . . Effects 12 | . . . . 4 8 Message Errors 1 | . . . . . 1 Matter Fused 2 | . . . . 2 . Heat Flow Errors 2 | . . . . 1 1 Energy Discharges 3 | . . . . 1 2 Parts Rejected 1 | . . . . . 1 Data Loss (major) 2 | . . . . . 2 Misfires 1 | . . . . . 1 Overload Shots . | . . . . . . Overflow Damage 171 | . . . . . 171 Projectiles 11 | . . . . . 11 Explosions 152 | . . . . . 152 Melee 8 | . . . . . 8 Knockbacks . | . . . . . . Impact . | . . . . . . Kinetic . | . . . . . . Secondary . | . . . . . . Self-Inflicted Damage 42 | . . . . . 42 Shots 2 | . . . . . 2 Rammed . | . . . . . . Targets Rammed . | . . . . . . Kicked . | . . . . . . Crushed . | . . . . . . Highest Temperature 308 | . . . 16 234 308 Average Temperature 90 | . . . 6 83 116 Received Heat Transfer 1068 | . 30 . 243 111 684 Siege Activations . | . . . . . . Martial Activations . | . . . . . . Shielding Activations . | . . . . . . Robots Disrupted . | . . . . . . Combat Hostiles . | . . . . . . Robots Corrupted . | . . . . . . Combat Hostiles . | . . . . . . Parts Fried . | . . . . . . Impact Corruptions . | . . . . . . Robots Melted . | . . . . . . Combat Hostiles . | . . . . . . Parts Melted 2 | 1 . . . 1 . Heat Transferred 1711 | 475 125 . 25 555 531 Parts Sabotaged . | . . . . . . Parts Stolen . | . . . . . . Parts Stripped . | . . . . . . Power Chain Reactions . | . . . . . . Alert | -11 -10 -10 -9 -9 -8 ------- Run | Yrd Mat Min Mat Sto Mat Maximum Alert Level 1 | . . . . . 1 Low Security (%) 97 | 100 100 100 100 100 78 Level 1 2 | . . . . . 21 Level 2 . | . . . . . . Level 3 . | . . . . . . Level 4 . | . . . . . . Level 5 . | . . . . . . High Security . | . . . . . . Max Security . | . . . . . . Peak Influence 249 | 10 64 56 68 31 249 Initial 23 | . . . 1 23 . Average 16 | . 7 6 10 3 114 Influence Increases 1266 | 70 177 68 210 162 579 Destroy 0b10 Robot/C 560 | . 100 40 120 40 260 Destroy 0b10 Robot/NC 135 | 70 15 . 10 20 20 Destroy Leader 150 | . 24 10 42 20 54 Allied During Kill 12 | . . 6 4 . 2 Successful Hack 58 | . 21 . 4 33 . Disable Machine 90 | . . . . . 90 Destroy Structure 141 | . 2 12 . 4 123 Lose Combat Pursuer 120 | . 15 . 30 45 30 Influence Decreases 1111 | 70 177 64 158 218 424 Entered New Map 36 | . . . 3 33 . Time Decay 833 | 70 177 54 131 167 234 Lost Part 140 | . . . 10 . 130 Lost Ally 84 | . . 10 14 . 60 Purge Threat 18 | . . . . 18 . Squads Dispatched 6 | . 1 . . 1 4 Investigation . | . . . . . . Extermination . | . . . . . . Reinforcement 6 | . 1 . . 1 4 Assault . | . . . . . . Garrison . | . . . . . . Intercept . | . . . . . . Searches Triggered . | . . . . . . Construction Impeded . | . . . . . . Haulers Reinforced . | . . . . . . Active Scanning Responses . | . . . . . . Cargo Convoy Interrupts . | . . . . . . Stealth | -11 -10 -10 -9 -9 -8 --------- Run | Yrd Mat Min Mat Sto Mat Distress Signals 13 | . 1 . 3 5 4 Communications Jammed . | . . . . . . Distress Signals . | . . . . . . Times Spotted 86 | . 13 2 17 25 29 Peak Tracking Total 7 | . 4 2 5 5 7 Tactical Retreats 8 | . 1 . 2 3 2 Traps | -11 -10 -10 -9 -9 -8 ------- Run | Yrd Mat Min Mat Sto Mat Traps Triggered 5 | . 3 . . . 2 Indirectly . | . . . . . . Trap Hack Attempts . | . . . . . . Triggered . | . . . . . . Disarmed . | . . . . . . Reprogrammed . | . . . . . . Reused . | . . . . . . Traps Extracted . | . . . . . . Installed . | . . . . . . Triggered . | . . . . . . Machines | -11 -10 -10 -9 -9 -8 ---------- Run | Yrd Mat Min Mat Sto Mat Machines Disabled 6 | . . . . . 6 Max in Single Turn 2 | . . . . . 2 Garrison Access 1 | . . . . 1 . Machines Repaired . | . . . . . . Machines Dismantled . | . . . . . . Machines Sabotaged . | . . . . . . Overloaded Fab Kills . | . . . . . . Hacking | -11 -10 -10 -9 -9 -8 --------- Run | Yrd Mat Min Mat Sto Mat Machines Accessed 25 | . 8 1 5 9 2 Terminals 19 | . 7 . 3 8 1 Fabricators . | . . . . . . Repair Stations 1 | . . . 1 . . Recycling Units 2 | . 1 . 1 . . Scanalyzers 1 | . . . . . 1 Garrison Access 1 | . . . . 1 . Total Hacks 54 | . 15 1 14 18 6 Successful 33 | . 9 1 10 9 4 Failed 19 | . 6 . 4 8 1 Catastrophic 5 | . 2 . . 2 1 Database Lockouts 2 | . . . . 1 1 Manual 40 | . 14 . 6 18 2 Terminals 37 | . 13 . 5 17 2 Fabricators . | . . . . . . Repair Stations 8 | . . . 8 . . Recycling Units 3 | . 2 . 1 . . Scanalyzers 4 | . . . . . 4 Garrison Access 1 | . . . . 1 . Terminal Hacks 5 | . 1 1 . 3 . Robot Schematic 2 | . 1 . . 1 . Open Door 2 | . . 1 . 1 . Unreport Threat 1 | . . . . 1 . Fabricator Hacks . | . . . . . . Repair Station Hacks 6 | . . . 6 . . Scan Component 3 | . . . 3 . . Repair 3 | . . . 3 . . Recycling Unit Hacks 1 | . 1 . . . . Report Inventory 1 | . 1 . . . . Scanalyzer 3 | . . . . . 3 Insert Component 1 | . . . . . 1 Analyze 1 | . . . . . 1 Retrieve Study 1 | . . . . . 1 Garrison Access Hacks 1 | . . . . 1 . Seal Access 1 | . . . . 1 . Unauthorized Hacks 17 | . 7 . 4 5 1 Terminals 15 | . 6 . 3 5 1 Assimilate 1 | . 1 . . . . Skim 14 | . 5 . 3 5 1 Fabricators . | . . . . . . Repair Stations . | . . . . . . Recycling Units 2 | . 1 . 1 . . Monitor 2 | . 1 . 1 . . Scanalyzers . | . . . . . . Garrison Access . | . . . . . . Data Cores Recovered 1 | . . . . 1 . Used . | . . . . . . Hacking Detections 19 | . 7 . 2 8 2 Full Trace Events 2 | . 1 . . . 1 Feedback Events . | . . . . . . Feedback Blocked . | . . . . . . Robot Schematics Acquired 1 | . 1 . . . . Robots Built . | . . . . . . Authchips . | . . . . . . Time . | . . . . . . Total Robot Build Rating . | . . . . . . Part Schematics Acquired 1 | . . . . . 1 Parts Built . | . . . . . . Authchips . | . . . . . . Time . | . . . . . . Total Part Build Rating . | . . . . . . Part Studies Acquired 1 | . . . . . 1 Parts Repaired 3 | . . . 3 . . Time 132 | . . . 132 . . Parts Recycled . | . . . . . . Recycled Matter . | . . . . . . Retrieved Matter . | . . . . . . Retrieved Components . | . . . . . . Parts Scanalyzed 1 | . . . . . 1 Part Schematics Acquired 1 | . . . . . 1 Parts Damaged . | . . . . . . Bothacking | -11 -10 -10 -9 -9 -8 ------------ Run | Yrd Mat Min Mat Sto Mat Used RIF Installer . | . . . . . . Robots Hacked . | . . . . . . Non-combat . | . . . . . . Combat . | . . . . . . Robot Hacks Applied . | . . . . . . Relay Couplers Released . | . . . . . . Fabnet Peak Effective % . | . . . . . . Robots Rewired . | . . . . . . Allies Hacked . | . . . . . . Hacks Repelled . | . . . . . . Allies | -11 -10 -10 -9 -9 -8 -------- Run | Yrd Mat Min Mat Sto Mat Total Allies 2 | . . 2 . . . Largest Group 2 | . . 2 2 . . Highest-Rated Group 43 | . . 43 43 . . Highest-Rated Ally 31 | . . 31 31 . . Total Orders 4 | . . 2 1 . 1 EXPLORE 3 | . . 1 1 . 1 RETURN 1 | . . 1 . . . Ally Attacks 8 | . . 5 3 . . Total Damage 150 | . . 85 65 . . Kills 3 | . . 2 1 . . Allies Corrupted 4 | . . . . . 4 Allies Melted . | . . . . . . Intel | -11 -10 -10 -9 -9 -8 ------- Run | Yrd Mat Min Mat Sto Mat Active Infowar (turns) 2120 | 5 1432 325 358 . . Terrain 425 | 5 36 26 358 . . Seismic 1695 | . 1396 299 . . . Robot Analysis Total . | . . . . . . Derelict Logs Recovered 2 | . . 2 . . . Drone Launches 48 | . . 20 13 . 15 Drone Recoveries 41 | . . 19 13 . 9 Exploration | -11 -10 -10 -9 -9 -8 ------------- Run | Yrd Mat Min Mat Sto Mat Turns Passed 5476 | 793 1470 510 908 1255 540 Spaces Moved 2540 | 239 902 250 307 582 260 Core 13 | 6 . . . . 7 Treads . | . . . . . . Legs 1411 | 233 902 194 32 . 50 Wheels . | . . . . . . Hover 1116 | . . 56 275 582 203 Flight . | . . . . . . Fastest Speed 50 | 50 120 77 66 66 50 Average Speed 119 | 123 120 119 140 101 131 Slowest Speed 300 | 190 120 160 190 132 300 Overloaded Moves . | . . . . . . Propulsion Burnouts . | . . . . . . Robots Hopped . | . . . . . . Potential Cave-ins 2 | . . . . . 2 Cave-ins Triggered . | . . . . . . Exploration Rate (%) 56 | 7 98 54 34 82 61 Regions Visited 5 Branch Regions 2 Pre-discovered Areas 1 | . . . . 1 . Known Exits Taken 2 | . . 1 1 . . Unknown Exits Taken 3 | 1 1 . . 1 . Scrap Searched . | . . . . . . Spaces Dug 5 | . 2 . . 3 . Terrain Destroyed 200 | . 2 12 . 3 183 Melee 5 | . 2 . . 3 . Projectile . | . . . . . . AOE 195 | . . 12 . . 183 Terrain Rammed . | . . . . . . Walls Destroyed . | . . . . . . Machines Disabled . | . . . . . . Actions | -11 -10 -10 -9 -9 -8 --------- Run | Yrd Mat Min Mat Sto Mat Total 4709 | 679 1249 456 725 1216 384 Wait 1871 | 392 312 189 343 593 42 Move 2535 | 238 901 249 306 581 260 Hop . | . . . . . . Pick Up 33 | 9 5 2 10 3 4 Fast Attach 15 | 6 . 3 . 3 3 Attach 13 | 2 1 1 3 . 6 Detach 1 | 1 . . . . . Swap 24 | . 4 5 7 2 6 Drop 26 | 2 4 4 5 8 3 Fire 153 | 29 12 1 43 21 47 Melee 38 | . 10 2 8 5 13 Ram . | . . . . . . Kick . | . . . . . . Crush . | . . . . . . Escape Stasis . | . . . . . . Rewire . | . . . . . . Trap . | . . . . . . Miscellaneous . | . . . . . . Route ------- -11/Scrapyard -10/Materials (discovered 5 exits: *Mat x3 / *Min / [*Sub]) -10/Mines (discovered 2 exits: *Mat x2) -9/Materials (discovered 2 exits: *Min / *Sto) -9/Storage (discovered 2 exits: *Mat / [*Rec]) -8/Materials (discovered 2 exits: *Fac x2) History --------- Turn | Location | Event 13 | -11/Scrapyard | Discovered new exit (range 16) 794 | -11/Scrapyard | Entered Materials 795 | -10/Materials | Met a group of wandering Federalists 810 | -10/Materials | Build established: Mutant 999 | -10/Materials | Discovered new exit (range 7) 1277 | -10/Materials | Discovered new exit (range 15) 1481 | -10/Materials | Discovered new exit (range 16) 1492 | -10/Materials | Discovered new exit (range 3) 1592 | -10/Materials | Learned location of 2 exits from Subcaves 1662 | -10/Materials | Learned Storage trap positions 1751 | -10/Materials | Discovered new exit (range 7) 1767 | -10/Materials | Learned Storage trap positions 1806 | -10/Materials | Learned 2 Storage zone layouts 1833 | -10/Materials | Learned location of 2 exits from Subcaves 1920 | -10/Materials | Learned Materials emergency access door positions 2264 | -10/Materials | Entered Mines 2265 | -10/Mines | Identified exit to Materials 2272 | -10/Mines | Learned Materials trap positions 2348 | -10/Mines | Learned Materials security intel 2558 | -10/Mines | Assembled infested the area 2568 | -10/Mines | Core integrity fell below 50% 2608 | -10/Mines | Found the Drone Emporium 2610 | -10/Mines | Found Prototype Device 2611 | -10/Mines | Identified Sensor Drone Bay 2774 | -10/Mines | Entered Materials 2774 | -9/Materials | Accompanied by 2 allies 2774 | -9/Materials | Evolved 2 slots: Propulsion x1, Utility x1 2775 | -9/Materials | Loaded intel: 16 trap records 2779 | -9/Materials | Led the pair of lost Derelicts to an unsafe place 2862 | -9/Materials | Discovered new exit (range 50) 2870 | -9/Materials | Identified exit to Storage 2874 | -9/Materials | Discovered new exit (range 50) 2881 | -9/Materials | Identified exit to Mines 3062 | -9/Materials | Build established: Scavenger-Mutant 3283 | -9/Materials | Repaired Mni. Grenade Launcher 3334 | -9/Materials | Repaired Cmb. Airjet 3385 | -9/Materials | Repaired Cmb. Airjet 3682 | -9/Materials | Entered Storage 3684 | -9/Storage | Loaded intel: 22 trap records 3700 | -9/Storage | Met 01-MTF 4236 | -9/Storage | Discovered new exit (range 6) 4378 | -9/Storage | Discovered new exit (range 16) 4408 | -9/Storage | Central database locked down 4562 | -9/Storage | Learned 4 Recycling zone layouts 4806 | -9/Storage | Learned location of 2 exits from Materials 4937 | -9/Storage | Entered Materials 4937 | -8/Materials | Accompanied by 1 ally (01-MTF) 4937 | -8/Materials | Evolved 2 slots: Power x1, Propulsion x1 4938 | -8/Materials | Identified exit to Factory 4940 | -8/Materials | 01-MTF left 5007 | -8/Materials | Central database locked down 5297 | -8/Materials | Lost 6 allies 5463 | -8/Materials | Core integrity fell below 50% 5474 | -8/Materials | Core integrity fell below 20% 5477 | -8/Materials | Destroyed by X-62 Marksman with Gauss Rifle Last Messages --------------- dispatching reinforcements to area. 05462_ Enh. Nuclear Core destroyed. 05462_ Sml. Storage Unit destroyed. 05462_ Critical hit (Blast). 05462_ Knocked back. 05465_ Penetrated by Slug. 05466_ Aluminum Leg destroyed. 05466_ Prototype Energy Gun tumbles out of recycling unit. 05466_ Aluminum Leg destroyed. 05466_ Critical hit (Burn: +37). 05468_ Slug penetrates X-62 Marksman. 05468_ X-62 Marksman knocked back. 05468_ Slug penetrates X-62 Marksman. 05469_ Penetrated by Slug. 05473_ The unstable cave ceiling collapses. 05474_ Penetrated by Slug. 05474_ Sensor Drone Bay destroyed. 05475_ Slug penetrates Wall. 05475_ Mining Claw destroyed. Map ----- +----------------------------------------------------+ | ?????????????????????????????????# # ##### | | ?????????????????????????????????# + / | | ?????????????????????????????????# # ### | | ?????????????????????????????????# # #?# | | ?????????????????????????????????# # #?# | | ?????????????????????????????????# # #???? | | ?????????????????????????????????###### #???? | | ??????????????????????????????????????# #???? | | ??????????????????????????????###?????# #???? | | ??????????? ?????#######????### ####### #???? | | ??????????? ##### #??### ## ## #???? | | ???????????? #??# # ####+###?? | | ?????????????? #??# # # ? | | ???????????????? #??# # # # | | ?????????????????# #??## ##% ### | | ?????????????????# Y ####### # # | | ??????????#?????## H # ## + | | ??????????# ##### x ]% # # # | | ?????????# # %"% ### # # | | ?????????? """ # x Y = #?### ! #?? | | ???????????""" # # " #???# #?? | | ?????????# """ # # [ #???##########?? | | ?????????# ; ########??????????????? | | ?????????# # #?????????????????????? | | ?????????#/! #g #?????????????????????? | | ?????????#! ?# @g#?????????????????????? | | ?????????# ??# #?????????????????????? | | ?????????######???# #?????????????????????? | | ??????????????????# < #?????????????????????? | | ??????????????????# #?????????????????????? | | ??????????????????#####?????????????????????? | | ??????????????????????????????????????????# # | | ??????????????????????????????????????????# | | ??????????????????????????????????????????### | | ????????????????????????????????????????????? | | ????????????????????????????????????????????? | | ????????????????????????????????????????????? | | ????????????????????????????????????????????? | | | | | | | | | | | | | | | | | | | | | | | | | +----------------------------------------------------+ Best States ------------- Heat Dissipation 45 Energy Generation 29 Energy Capacity 500 Matter Stores 300 Matter Capacity 300 Sight Range 16 Terrain Scan Range 16 Terrain Scan Density 10 Armor Coverage 150 Evasion (%) 55 Item Schematics ----------------- Aluminum Leg | -8/Materials | Scanalyzed Robot Schematics ------------------ G-34 Mercenary | -10/Materials | Hacked Fabricated ------------ Nothing Repaired ---------- Mni. Grenade Launcher | 10% | -9/Materials Cmb. Airjet | 32% | -9/Materials Cmb. Airjet | 38% | -9/Materials Studied --------- Hover Unit | -8/Materials | Hacked Alien Tech Used ----------------- None Achievements -------------- Release The Drones! Challenges ------------ None Game ------ Seed WarpPotentialRouter Manual? 0 Play Time 00:52:06 Cumulative 25.0 hours Start 2026.09.20 @ 13:00:01 End 2026.09.20 @ 14:40:02 Sessions 1 Manual Loads 0 Difficulty Rogue Special Mode None Game No. 48 Rogue 48 Adventurer 0 Explorer 0 Win Type - Total 0 Types 0/0/0/0/0/0/0/0/0/0 Lore% 33 Gallery% 19 Achievement% 17 Wizard Run 0 Options --------- Layout 2 ASCII 0 Keyboard 0 Movement Mouse Keybinds 0 Fullscreen 2 Font 24/Smallcaps Map View 50x44 Zoom Use 0% Tactical HUD 1 Map Filters NONE Filters NONE Steam 1 RUN: 3196a8ec-09c4-49f9-93fa-211513f8baee